{"text_format":"1","workbook":"xlsx","n_sheets":1,"sheets":["albero"],"not_rendered":{"charts":0,"images":1,"macros":1,"external_links":0,"defined_names":3,"comments":0,"pivot_tables":0},"unopened":[],"bounds":{"document_bytes":16777216,"sheet_cells":100000,"rows_first":2000,"rows_last":500,"rows_between":2000,"halvings":0,"cell_chars":16384,"cell_head_chars":4096},"cells_cut":0,"cells_raw":0,"read":"whole","date_system":"1900"}

{"sheet":"albero","index":0,"n_rows":686,"n_cols":11,"rows_kept":686,"cut":false,"hidden":false,"merged":[[679,2,685,2],[679,1,685,1],[618,2,635,2],[636,2,640,2],[641,2,642,2],[643,2,645,2],[646,2,678,2],[646,1,678,1],[641,1,642,1],[643,1,645,1],[207,2,218,2],[219,2,603,2],[604,2,617,2],[116,2,122,2],[123,2,128,2],[129,2,141,2],[142,2,149,2],[150,2,158,2],[186,2,206,2],[22,2,32,2],[33,2,35,2],[36,2,37,2],[38,2,70,2],[159,2,185,2],[71,2,85,2],[86,2,92,2],[93,2,94,2],[95,2,104,2],[105,2,108,2],[109,2,112,2],[113,2,115,2],[604,1,617,1],[618,1,635,1],[636,1,640,1],[150,1,158,1],[159,1,185,1],[186,1,206,1],[207,1,218,1],[219,1,603,1],[113,1,115,1],[116,1,122,1],[123,1,128,1],[129,1,141,1],[142,1,149,1],[86,1,92,1],[93,1,94,1],[95,1,104,1],[105,1,108,1],[109,1,112,1],[22,1,32,1],[33,1,35,1],[36,1,37,1],[38,1,70,1],[71,1,85,1],[2,2,8,10],[10,1,10,2],[11,1,17,1],[11,2,17,2],[18,1,21,1],[18,2,21,2]]}
[null,null,null,null,"ALBERO DELLE CATEGORIE MERCEOLOGICHE"]
[null,null,null,null,"ISTRUZIONI PER L'UTILIZZO DEL FILE"]
[null,null,"Per simulare il corrispettivo dovuto per l'iscrizione all'Albo Fornitori di AGS, attenersi alle seguenti disposizioni:\n● inserire una \"x\" nelle celle azzurre (vd. colonna H) corrispondenti alle categorie selezionate.\n● nella cella J11 verrà visualizzato l'importo dovuto (IVA esclusa); l'importo da versare ad AGS, secondo le indicazioni di cui al Regolamento è quello comprensivo di IVA, visualizzabile nella cella K11\nSi precisa che l'importo totale comprende un corrispettivo fisso pari a €100 (IVA esclusa) per la gestione della domanda di iscrizione, indipendentemente dal numero di categorie merceologiche selezionate.\n\nEstremi per il pagamento:\nBeneficiario: AEROPORTO DI GENOVA S.P.A.\nCausale: “Iscrizione Albo - Ragione Sociale - P.IVA/C.F. - Categoria/e selezionata/e (es.CM-060401...etc.).”\nIBAN: IT 53Z 06175 01421 000003987920"]
[]
[]
[]
[]
[]
[]
[null,null,null,null,null,null,null,null,null,"IMPORTO BONIFICO (€ 100,00 FISSO + € 30,00 PER MACRO CATEGORIA)\n(IVA ESCLUSA)","IMPORTO BONIFICO (€ 100,00 FISSO + € 30,00 PER MACRO CATEGORIA)\n(IVA INCLUSA)"]
[null,"MACROCATEGORIE",null,null,"Descrizione","Costo  categoria\n(IVA ESCLUSA)","Corrispettivo da pagare\n(IVA INCLUSA)","Categorie selezionabili\n(selezionare con una \"x\")","COSTO CATEGORIA\n(IVA ESCLUSA)",{"$f":"IF(100+(SUBTOTAL(9,$I$12:$I$686))=100,0,100+(SUBTOTAL(9,$I$12:$I$686)))","v":0},{"$f":"(J11*1.22)","v":0}]
[null,"CM-01","ARREDI","CM-0101","Arredi / Sedute / Casseforti",null,null,null,{"$f":"IF(COUNTIF(H13:H18,\"x\")>0,30,0)","v":0}]
[null,null,null,"CM-010101","Arredi per ufficio ",30,36.6]
[null,null,null,"CM-010102","Sedute aeroportuali",30,36.6]
[null,null,null,"CM-010103","Arredi metallici / Scaffalature",30,36.6]
[null,null,null,"CM-010104","Casseforti /Armadi blindati",30,36.6]
[null,null,null,"CM-0102","Manutenzione arredi",30,36.6]
[null,null,null,"CM-0103","Tendaggi / Tende alla veneziana/ Telonati",30,36.6]
[null,"CM-02","PRODOTTI PER UFFICIO /INFORMATICA DI CONSUMO","CM-0201","Prodotti per ufficio",null,null,null,{"$f":"IF(COUNTIF(H20:H22,\"x\")>0,30,0)","v":0}]
[null,null,null,"CM-020101","Cancelleria e carta",30,36.6]
[null,null,null,"CM-020102","Timbri e targhe",30,36.6]
[null,null,null,"CM-0202","Informatica di consumo /Toner / Cartucce / Nastri",30,36.6]
[null,"CM-03","STAMPATI","CM-0301","Stampati vari",null,null,null,{"$f":"IF(COUNTIF(H24:H33,\"x\")>0,30,0)","v":0}]
[null,null,null,"CM-030101","Stampati istituzionali",30,36.6]
[null,null,null,"CM-030102","Stampati commerciali e pubblicitari",30,36.6]
[null,null,null,"CM-030103","Biglietti da visita",30,36.6]
[null,null,null,"CM-030104","Copisteria",30,36.6]
[null,null,null,"CM-0302","Carte d'imbarco ed Etichette bagaglio"]
[null,null,null,"CM-030201","Carte d'imbarco",30,36.6]
[null,null,null,"CM-030202","Etichette bagaglio",30,36.6]
[null,null,null,"CM-030203","Etichette nome per bagagli",30,36.6]
[null,null,null,"CM-030204","Modulistica e stampati personalizzati",30,36.6]
[null,null,null,"CM-0303","Carte / Badge plastici, magnetici",30,36.6]
[null,"CM-04","DISPOSITIVI PROTEZIONE INDIVIDUALE (DPI)","CM-0401","Indumenti",30,36.6,null,{"$f":"IF(COUNTIF(H34:H36,\"x\")>0,30,0)","v":0}]
[null,null,null,"CM-0402","Scarpe",30,36.6]
[null,null,null,"CM-0403","Accessori ",30,36.6]
[null,"CM-05","ABBIGLIAMENTO E DIVISE","CM-0501","Abbigliamento operai /Abbigliamento impiegati di scalo",30,36.6,null,{"$f":"IF(COUNTIF(H37:H38,\"x\")>0,30,0)","v":0}]
[null,null,null,"CM-0502","Accessori",30,36.6]
[null,"CM-06","EDILIZIA","CM-0601","Edilizia",null,null,null,{"$f":"IF(COUNTIF(H40:H71,\"x\")>0,30,0)","v":0}]
[null,null,null,"CM-060101","Manutenzione Edile",30,36.6]
[null,null,null,"CM-060102","Manutenzione asfalti / piazzali",30,36.6]
[null,null,null,"CM-060103","Materiale edile vario",30,36.6]
[null,null,null,"CM-060104","Pavimenti - Fornitura materiali",30,36.6]
[null,null,null,"CM-060105","Pavimenti - Posa / Manutenzione",30,36.6]
[null,null,null,"CM-060106","Pareti in cartongesso - Fornitura materiali",30,36.6]
[null,null,null,"CM-060107","Pareti in cartongesso - Posa / Manutenzione",30,36.6]
[null,null,null,"CM-0602","Serramentistica/Porte/Porte Automatiche"]
[null,null,null,"CM-060201","Serramentistica - Fornitura materiali",30,36.6]
[null,null,null,"CM-060202","Serramentistica - Posa / Manutenzione",30,36.6]
[null,null,null,"CM-0603","Tinteggiatura"]
[null,null,null,"CM-060301","Tinteggiatura - Fornitura materiali",30,36.6]
[null,null,null,"CM-060302","Tinteggiatura - Posa / Manutenzione",30,36.6]
[null,null,null,"CM-0604","Vetri e Cristalli"]
[null,null,null,"CM-060401","Vetri e Cristalli - Fornitura materiali",30,36.6]
[null,null,null,"CM-060402","Vetri e Cristalli - Posa / Manutenzione",30,36.6]
[null,null,null,"CM-0605","Carpenteria metallica leggera"]
[null,null,null,"CM-060501","Carpenteria metallica leggera - Fornitura materiali",30,36.6]
[null,null,null,"CM-060502","Carpenteria metallica leggera - Posa / Manutenzione",30,36.6]
[null,null,null,"CM-0606","Impermeabilizzazioni"]
[null,null,null,"CM-060601","Impermeabilizzazioni - Fornitura",30,36.6]
[null,null,null,"CM-060602","Impermeabilizzazioni - Posa / Manutenzione",30,36.6]
[null,null,null,"CM-0607","Verde  "]
[null,null,null,"CM-060701","Verde - Fornitura piante e fiori",30,36.6]
[null,null,null,"CM-060702","Verde - Posa / Manutenzione",30,36.6]
[null,null,null,"CM-0608","Segnaletica"]
[null,null,null,"CM-060801","Segnaletica - Fornitura materiali",30,36.6]
[null,null,null,"CM-060802","Segnaletica - Posa / Manutenzione",30,36.6]
[null,null,null,"CM-0609","Noleggio Autogru ed attrezzatura",30,36.6]
[null,null,null,"CM-0610","Fornitura / Noleggio unità abitative",30,36.6]
[null,null,null,"CM-0611","Noleggio bagni chimici",30,36.6]
[null,null,null,"CM-0612","Arredo Urbano",30,36.6]
[null,"CM-07","ELETTROTECNICA/ANTINCENDIO","CM-0701","Impiantistica elettrica",null,null,null,{"$f":"IF(COUNTIF(H73:H86,\"x\")>0,30,0)","v":0}]
[null,null,null,"CM-070101","Impiantistica elettrica - Fornitura materiali",30,36.6]
[null,null,null,"CM-070102","Impiantistica elettrica - Posa / Manutenzione",30,36.6]
[null,null,null,"CM-0702","Torri Faro"]
[null,null,null,"CM-070201","Torri Faro - Fornitura materiali",30,36.6]
[null,null,null,"CM-070202","Torri Faro - Posa / Manutenzione",30,36.6]
[null,null,null,"CM-0703","Gruppi elettrogeni "]
[null,null,null,"CM-070301","Gruppi elettrogeni - Fornitura materiali",30,36.6]
[null,null,null,"CM-070302","Gruppi elettrogeni - Posa / Manutenzione",30,36.6]
[null,null,null,"CM-0704","Antincendio"]
[null,null,null,"CM-070401","Antincendio - Fornitura materiali",30,36.6]
[null,null,null,"CM-070402","Antincendio - Posa / Manutenzione",30,36.6]
[null,null,null,"CM-0705","UPS"]
[null,null,null,"CM-070501","UPS - Fornitura materiali",30,36.6]
[null,null,null,"CM-070502","UPS - Posa / Manutenzione",30,36.6]
[null,"CM-08","TERMO IDRAULICA","CM-0801","Apparecchiature (condizionamento / riscaldamento / Unità Trattamento Aria / Celle frigorifere)",null,null,null,{"$f":"IF(COUNTIF(H88:H93,\"x\")>0,30,0)","v":0}]
[null,null,null,"CM-080101","Termo idraulica - Apparecchiature - Fornitura materiali",30,36.6]
[null,null,null,"CM-080102","Termo idraulica - Apparecchiature - Posa / Manutenzione",30,36.6]
[null,null,null,"CM-0802","Impianti idraulici / Sanitari e accessori"]
[null,null,null,"CM-080201","Impianti idraulici / Sanitari e accessori - Fornitura materiali",30,36.6]
[null,null,null,"CM-080202","Impianti idraulici / Sanitari e accessori - Posa / Manutenzione",30,36.6]
[null,null,null,"CM-0803","Filtri trattamento aria",30,36.6]
[null,"CM-09","MECCANICA ED UTENSILERIA","CM-0901","Accessori / Standarderia",30,36.6,null,{"$f":"IF(COUNTIF(H94:H95,\"x\")>0,30,0)","v":0}]
[null,null,null,"CM-0902","Utensileria / Strumenti",30,36.6]
[null,"CM-10","AUTOMEZZI","CM-1001","Fornitura mezzi /ricambi",null,null,null,{"$f":"IF(COUNTIF(H97:H105,\"x\")>0,30,0)","v":0}]
[null,null,null,"CM-100101","Pneumatici",30,36.6]
[null,null,null,"CM-100102","Ricambi / Batterie / Accumulatori",30,36.6]
[null,null,null,"CM-100103","Autovetture",30,36.6]
[null,null,null,"CM-100104","Veicoli commerciali",30,36.6]
[null,null,null,"CM-100105","Veicoli Industriali",30,36.6]
[null,null,null,"CM-100106","Noleggio flotte aziendali",30,36.6]
[null,null,null,"CM-1002","Manutenzione mezzi"]
[null,null,null,"CM-100201","Manutenzione e riparazione carrozzeria",30,36.6]
[null,null,null,"CM-100202","Manutenzione e riparazione meccanica",30,36.6]
[null,"CM-11","COMBUSTIBILI / LUBRIFICANTI","CM-1101","Combustibili",null,null,null,{"$f":"IF(COUNTIF(H107:H109,\"x\")>0,30,0)","v":0}]
[null,null,null,"CM-110101","Gasolio",30,36.6]
[null,null,null,"CM-110102","Benzina",30,36.6]
[null,null,null,"CM-1102","Fluidi idraulici / Olii e Grassi",30,36.6]
[null,"CM-12","CHIMICA","CM-1201","Prodotti chimici / Vernici / Adesivi / Abrasivi / Collanti",30,36.6,null,{"$f":"IF(COUNTIF(H110:H113,\"x\")>0,30,0)","v":0}]
[null,null,null,"CM-1202","Gas compressi e liquidi",30,36.6]
[null,null,null,"CM-1203","Oleoassorbenti",30,36.6]
[null,null,null,"CM-1204","Prodotti Antigelo",30,36.6]
[null,"CM-13","MATERIALE RAMPA","CM-1301","Coni",30,36.6,null,{"$f":"IF(COUNTIF(H114:H116,\"x\")>0,30,0)","v":0}]
[null,null,null,"CM-1302","Tacchi",30,36.6]
[null,null,null,"CM-1303","Accessori",30,36.6]
[null,"CM-14","SCALE MOBILI / ASCENSORI / MONTACARICHI","CM-1401","Scale Mobili  ",null,null,null,{"$f":"IF(COUNTIF(H118:H123,\"x\")>0,30,0)","v":0}]
[null,null,null,"CM-140101","Scale Mobili - Fornitura materiali",30,36.6]
[null,null,null,"CM-140102","Scale Mobili - Posa / Manutenzione",30,36.6]
[null,null,null,"CM-1402","Ascensori / Montacarichi"]
[null,null,null,"CM-140201","Ascensori - Fornitura materiali",30,36.6]
[null,null,null,"CM-140202","Ascensori - Posa / Manutenzione",30,36.6]
[null,null,null,"CM-1403","Responsabili dell'Esercizio",30,36.6]
[null,"CM-15","SALUTE E ASSISTENZA SANITARIA","CM-1501","Prodotti farmaceutici e medicali",null,null,null,{"$f":"IF(COUNTIF(H125:H129,\"x\")>0,30,0)","v":0}]
[null,null,null,"CM-150101","Prodotti farmaceutici",30,36.6]
[null,null,null,"CM-150102","Apparecchiature e articoli medicali",30,36.6]
[null,null,null,"CM-1502","Servizio Primo Soccorso",30,36.6]
[null,null,null,"CM-1503","Medicina del Lavoro",30,36.6]
[null,null,null,"CM-1504","Servizio Passeggeri a Ridotta Mobilità",30,36.6]
[null,"CM-16","PULIZIA/ECOLOGIA","CM-1601","Gestione rifiuti",null,null,null,{"$f":"IF(COUNTIF(H131:H142,\"x\")>0,30,0)","v":0}]
[null,null,null,"CM-160101","Raccolta e Trasporto",30,36.6]
[null,null,null,"CM-160102","Smaltimento",30,36.6]
[null,null,null,"CM-160103","Autospurgo",30,36.6]
[null,null,null,"CM-160104","Fornitura contenitori raccolta rifiuti",30,36.6]
[null,null,null,"CM-1602","Analisi chimiche",30,36.6]
[null,null,null,"CM-1603","Pulizie"]
[null,null,null,"CM-160301","Pulizie civili",30,36.6]
[null,null,null,"CM-160302","Pulizie industriali",30,36.6]
[null,null,null,"CM-160303","Pulizie aeromobili",30,36.6]
[null,null,null,"CM-160304","Pulizia viabilità",30,36.6]
[null,null,null,"CM-1604","Derattizzazione / Disinfestazione / Igiene ambientale",30,36.6]
[null,null,null,"CM-1605","Pezzame",30,36.6]
[null,"CM-17","IMPIANTISTICA AEROPORTUALE","CM-1701","Sistema smistamento bagagli",30,36.6,null,{"$f":"IF(COUNTIF(H143:H150,\"x\")>0,30,0)","v":0}]
[null,null,null,"CM-1702","Pontili d'imbarco",30,36.6]
[null,null,null,"CM-1703","Banchi check-in / Box vari (controllo passaporti…)",30,36.6]
[null,null,null,"CM-1704","Segnaletica di indirizzo al passeggero",30,36.6]
[null,null,null,"CM-1705","Impianti AVL (aiuto visivo luminosi)",30,36.6]
[null,null,null,"CM-1706","Luci Pista ed accessori",30,36.6]
[null,null,null,"CM-1707","Segnali di pista",30,36.6]
[null,null,null,"CM-1708","Sistemi di pesatura",30,36.6]
[null,"CM-18","ATTREZZATURA PER SICUREZZA","CM-1801","Apparati controllo bagagli",null,null,null,{"$f":"IF(COUNTIF(H151:H159,\"x\")>0,30,0)","v":0}]
[null,null,null,"CM-180101","Apparati controllo bagagli - A mano",30,36.6]
[null,null,null,"CM-180102","Apparati controllo bagagli - Da stiva",30,36.6]
[null,null,null,"CM-180103","Apparati controllo bagagli - Cargo",30,36.6]
[null,null,null,"CM-180104","Apparati controllo bagagli - Metal detector",30,36.6]
[null,null,null,"CM-180105","Apparati controllo bagagli - Rilevatori di esplosivi",30,36.6]
[null,null,null,"CM-1802","Apparati controllo passeggeri"]
[null,null,null,"CM-180201","Apparati controllo passeggeri - Metal detector",30,36.6]
[null,null,null,"CM-180202","Apparati controllo passeggeri - Rilevatori di esplosivi",30,36.6]
[null,"CM-19","MEZZI E ATTREZZATURE SPECIALI AEROPORTUALI","CM-1901 ","Attrezzature speciali aeroportuali",null,null,null,{"$f":"IF(COUNTIF(H160:H186,\"x\")>0,30,0)","v":0}]
[null,null,null,"CM-190101","GPU (ground power unit)",30,36.6]
[null,null,null,"CM-190102","ACU (air conditioning unit)",30,36.6]
[null,null,null,"CM-190103","ASU (air starter unit)",30,36.6]
[null,null,null,"CM-190104","Carrelli per bagaglio passeggeri",30,36.6]
[null,null,null,"CM-190105","Carrelli per movimentazione bagagli da stiva",30,36.6]
[null,null,null,"CM-190106","Carrelli per movimentazione merci",30,36.6]
[null,null,null,"CM-190107","Carrelli Sollevatori",30,36.6]
[null,null,null,"CM-190108","Nastri per carico / scarico bagagli",30,36.6]
[null,null,null,"CM-190109","Barre di traino",30,36.6]
[null,null,null,"CM-190110","Misuratori coefficienti d'attrito",30,36.6]
[null,null,null,"CM-1902","Mezzi speciali aeroportuali"]
[null,null,null,"CM-190201","Trattori traino",30,36.6]
[null,null,null,"CM-19020101","Trattorini diesel",30,36.6]
[null,null,null,"CM-19020102","Trattorini elettrici",30,36.6]
[null,null,null,"CM-19020103","Trattori push-back",30,36.6]
[null,null,null,"CM-190202","Autobus interpista",30,36.6]
[null,null,null,"CM-190203","Scarico toilette / Botti acqua",30,36.6]
[null,null,null,"CM-190204","Gru e autogru",30,36.6]
[null,null,null,"CM-190205","Mezzi sgombraneve",30,36.6]
[null,null,null,"CM-190206","Spazzatrici",30,36.6]
[null,null,null,"CM-190207","Veicoli antincendio",30,36.6]
[null,null,null,"CM-190208","De icing",30,36.6]
[null,null,null,"CM-190209","Veicoli e piattaforme per disabili / Ambulift",30,36.6]
[null,null,null,"CM-190210","Cargo Loader",30,36.6]
[null,null,null,"CM-190211","Scale passeggeri",30,36.6]
[null,null,null,"CM-1903","Manutenzione mezzi e attrezzature speciali aeroportuali",30,36.6]
[null,"CM-20","SISTEMI INFORMATIVI","CM-2001","Hardware",null,null,null,{"$f":"IF(COUNTIF(H188:H207,\"x\")>0,30,0)","v":0}]
[null,null,null,"CM-200101","PC, stampanti, server ed infrastrutture di storage",30,36.6]
[null,null,null,"CM-200102","Pannelli / Display informativi (Monitor informativa al pubblico)",30,36.6]
[null,null,null,"CM-200103","Hardware per accettazione ed imbarco passeggeri",30,36.6]
[null,null,null,"CM-200104","Apparati audio / video",30,36.6]
[null,null,null,"CM-200105","Fotocopiatrici",30,36.6]
[null,null,null,"CM-200106","Fax",30,36.6]
[null,null,null,"CM-2002","Software"]
[null,null,null,"CM-200201","Software gestionale",30,36.6]
[null,null,null,"CM-200202","Software per office automation",30,36.6]
[null,null,null,"CM-200203","Software per disegno tecnico",30,36.6]
[null,null,null,"CM-200204","Software per sicurezza informatica",30,36.6]
[null,null,null,"CM-2003","Sistemi"]
[null,null,null,"CM-200301","Sistemi informativi aeroportuali",30,36.6]
[null,null,null,"CM-200302","Sistemi Rilevazione Presenze",30,36.6]
[null,null,null,"CM-200303","Sistemi Controllo Accessi",30,36.6]
[null,null,null,"CM-200304","Sistemi VideoSorveglianza",30,36.6]
[null,null,null,"CM-200305","Sistemi controllo Uscite di Emergenza",30,36.6]
[null,null,null,"CM-200306","Sistemi di Diffusione Sonora",30,36.6]
[null,null,null,"CM-200307","Sistemi di Monitoraggio Acustico",30,36.6]
[null,null,null,"CM-2004","Internet / Intranet",30,36.6]
[null,"CM-21","TELECOMUNICAZIONI","CM-2101","Provider di servizi telefonici",30,36.6,null,{"$f":"IF(COUNTIF(H208:H219,\"x\")>0,30,0)","v":0}]
[null,null,null,"CM-2102","Rete attiva e passiva"]
[null,null,null,"CM-210201","Rete attiva - Fornitura apparati",30,36.6]
[null,null,null,"CM-210202","Rete attiva -  Installazione / Manutenzione",30,36.6]
[null,null,null,"CM-210203","Rete passiva - Fornitura materiali",30,36.6]
[null,null,null,"CM-210204","Rete passiva - Posa / Manutenzione",30,36.6]
[null,null,null,"CM-210205","Software gestione rete dati",30,36.6]
[null,null,null,"CM-2103","Fornitura di impianti e sistemi radio"]
[null,null,null,"CM-210301","Apparati periferici",30,36.6]
[null,null,null,"CM-210302","Apparati centrali",30,36.6]
[null,null,null,"CM-2104","Sistemi di telefonia ",30,36.6]
[null,null,null,"CM-2105","Cuffie e ricetrasmittenti",30,36.6]
[null,"CM-22","LAVORI - CATEGORIE SOA","CM-2201","Edifici civili e industriali (OG 01)",null,null,null,{"$f":"IF(COUNTIF(H221:H230,\"x\")>0,30,0)","v":0}]
[null,null,null,"CM-220101","OG01 I fino a euro 258.000 ",30,36.6]
[null,null,null,"CM-220102","OG01 II fino a euro 516.000",30,36.6]
[null,null,null,"CM-220103","OG01 III fino a euro 1.033.000",30,36.6]
[null,null,null,"CM-220104","OG01 III bis fino a euro 1.500.000",30,36.6]
[null,null,null,"CM-220105","OG01 IV fino a euro 2.582.000",30,36.6]
[null,null,null,"CM-220106","OG01 IV bis fino a euro 3.500.000",30,36.6]
[null,null,null,"CM-220107","OG01 V fino a euro 5.165.000",30,36.6]
[null,null,null,"CM-220108","OG01 VI fino a euro 10.329.000",30,36.6]
[null,null,null,"CM-220109","OG01 VII fino a euro 15.494.000",30,36.6]
[null,null,null,"CM-220110","OG01 VIII oltre euro 15.494.000",30,36.6]
[null,null,null,"CM-2202","Strade, autostrade, ponti, viadotti, ferrovie, linee tranviarie, metropolitane, funicolari, piste aeroportuali, e relative opere complementari (OG 03)",null,null,null,{"$f":"IF(COUNTIF(H232:H241,\"x\")>0,30,0)","v":0}]
[null,null,null,"CM-220201","OG03 I fino a euro 258.000 ",30,36.6]
[null,null,null,"CM-220202","OG03 II fino a euro 516.000",30,36.6]
[null,null,null,"CM-220203","OG03 III fino a euro 1.033.000",30,36.6]
[null,null,null,"CM-220204","OG03 III bis fino a euro 1.500.000",30,36.6]
[null,null,null,"CM-220205","OG03 IV fino a euro 2.582.000",30,36.6]
[null,null,null,"CM-220206","OG03 IV bis fino a euro 3.500.000",30,36.6]
[null,null,null,"CM-220207","OG03 V fino a euro 5.165.000",30,36.6]
[null,null,null,"CM-220208","OG03 VI fino a euro 10.329.000",30,36.6]
[null,null,null,"CM-220209","OG03 VII fino a euro 15.494.000",30,36.6]
[null,null,null,"CM-220210","OG03 VIII oltre euro 15.494.000",30,36.6]
[null,null,null,"CM-2203","Acquedotti, gasdotti, oleodotti, opere di irrigazione e di evacuazione (OG 06)",null,null,null,{"$f":"IF(COUNTIF(H243:H252,\"x\")>0,30,0)","v":0}]
[null,null,null,"CM-220301","OG06 I fino a euro 258.000 ",30,36.6]
[null,null,null,"CM-220302","OG06 II fino a euro 516.000",30,36.6]
[null,null,null,"CM-220303","OG06 III fino a euro 1.033.000",30,36.6]
[null,null,null,"CM-220304","OG06 III bis fino a euro 1.500.000",30,36.6]
[null,null,null,"CM-220305","OG06 IV fino a euro 2.582.000",30,36.6]
[null,null,null,"CM-220306","OG06 IV bis fino a euro 3.500.000",30,36.6]
[null,null,null,"CM-220307","OG06 V fino a euro 5.165.000",30,36.6]
[null,null,null,"CM-220308","OG06 VI fino a euro 10.329.000",30,36.6]
[null,null,null,"CM-220309","OG06 VII fino a euro 15.494.000",30,36.6]
[null,null,null,"CM-220310","OG06 VIII oltre euro 15.494.000",30,36.6]
[null,null,null,"CM-2204","Opere fluviali, di difesa, di sistemazione idraulica e di bonifica (OG 08)",null,null,null,{"$f":"IF(COUNTIF(H254:H263,\"x\")>0,30,0)","v":0}]
[null,null,null,"CM-220401","OG08 I fino a euro 258.000 ",30,36.6]
[null,null,null,"CM-220402","OG08 II fino a euro 516.000",30,36.6]
[null,null,null,"CM-220403","OG08 III fino a euro 1.033.000",30,36.6]
[null,null,null,"CM-220404","OG08 III bis fino a euro 1.500.000",30,36.6]
[null,null,null,"CM-220405","OG08 IV fino a euro 2.582.000",30,36.6]
[null,null,null,"CM-220406","OG08 IV bis fino a euro 3.500.000",30,36.6]
[null,null,null,"CM-220407","OG08 V fino a euro 5.165.000",30,36.6]
[null,null,null,"CM-220408","OG08 VI fino a euro 10.329.000",30,36.6]
[null,null,null,"CM-220409","OG08 VII fino a euro 15.494.000",30,36.6]
[null,null,null,"CM-220410","OG08 VIII oltre euro 15.494.000",30,36.6]
[null,null,null,"CM-2205","Impianti per la produzione di energia elettrica (OG 09)",null,null,null,{"$f":"IF(COUNTIF(H265:H274,\"x\")>0,30,0)","v":0}]
[null,null,null,"CM-220501","OG09 I fino a euro 258.000 ",30,36.6]
[null,null,null,"CM-220502","OG09 II fino a euro 516.000",30,36.6]
[null,null,null,"CM-220503","OG09 III fino a euro 1.033.000",30,36.6]
[null,null,null,"CM-220504","OG09 III bis fino a euro 1.500.000",30,36.6]
[null,null,null,"CM-220505","OG09 IV fino a euro 2.582.000",30,36.6]
[null,null,null,"CM-220506","OG09 IV bis fino a euro 3.500.000",30,36.6]
[null,null,null,"CM-220507","OG09 V fino a euro 5.165.000",30,36.6]
[null,null,null,"CM-220508","OG09 VI fino a euro 10.329.000",30,36.6]
[null,null,null,"CM-220509","OG09 VII fino a euro 15.494.000",30,36.6]
[null,null,null,"CM-220510","OG09 VIII oltre euro 15.494.000",30,36.6]
[null,null,null,"CM-2206","Impianti per la trasformazione alta/media tensione e per la distribuzione di energia elettrica in corrente alternata e continua (OG 10)",null,null,null,{"$f":"IF(COUNTIF(H276:H285,\"x\")>0,30,0)","v":0}]
[null,null,null,"CM-220601","OG10 I fino a euro 258.000 ",30,36.6]
[null,null,null,"CM-220602","OG10 II fino a euro 516.000",30,36.6]
[null,null,null,"CM-220603","OG10 III fino a euro 1.033.000",30,36.6]
[null,null,null,"CM-220604","OG10 III bis fino a euro 1.500.000",30,36.6]
[null,null,null,"CM-220605","OG10 IV fino a euro 2.582.000",30,36.6]
[null,null,null,"CM-220606","OG10 IV bis fino a euro 3.500.000",30,36.6]
[null,null,null,"CM-220607","OG10 V fino a euro 5.165.000",30,36.6]
[null,null,null,"CM-220608","OG10 VI fino a euro 10.329.000",30,36.6]
[null,null,null,"CM-220609","OG10 VII fino a euro 15.494.000",30,36.6]
[null,null,null,"CM-220610","OG10 VIII oltre euro 15.494.000",30,36.6]
[null,null,null,"CM-2207","Impianti tecnologici (OG 11)",null,null,null,{"$f":"IF(COUNTIF(H287:H296,\"x\")>0,30,0)","v":0}]
[null,null,null,"CM-220701","OG11 I fino a euro 258.000 ",30,36.6]
[null,null,null,"CM-220702","OG11 II fino a euro 516.000",30,36.6]
[null,null,null,"CM-220703","OG11 III fino a euro 1.033.000",30,36.6]
[null,null,null,"CM-220704","OG11 III bis fino a euro 1.500.000",30,36.6]
[null,null,null,"CM-220705","OG11 IV fino a euro 2.582.000",30,36.6]
[null,null,null,"CM-220706","OG11 IV bis fino a euro 3.500.000",30,36.6]
[null,null,null,"CM-220707","OG11 V fino a euro 5.165.000",30,36.6]
[null,null,null,"CM-220708","OG11 VI fino a euro 10.329.000",30,36.6]
[null,null,null,"CM-220709","OG11 VII fino a euro 15.494.000",30,36.6]
[null,null,null,"CM-220710","OG11 VIII oltre euro 15.494.000",30,36.6]
[null,null,null,"CM-2208","Opere ed impianti di bonifica e protezione ambientale (OG 12)",null,null,null,{"$f":"IF(COUNTIF(H298:H307,\"x\")>0,30,0)","v":0}]
[null,null,null,"CM-220801","OG12 I fino a euro 258.000 ",30,36.6]
[null,null,null,"CM-220802","OG12 II fino a euro 516.000",30,36.6]
[null,null,null,"CM-220803","OG12 III fino a euro 1.033.000",30,36.6]
[null,null,null,"CM-220804","OG12 III bis fino a euro 1.500.000",30,36.6]
[null,null,null,"CM-220805","OG12 IV fino a euro 2.582.000",30,36.6]
[null,null,null,"CM-220806","OG12 IV bis fino a euro 3.500.000",30,36.6]
[null,null,null,"CM-220807","OG12 V fino a euro 5.165.000",30,36.6]
[null,null,null,"CM-220808","OG12 VI fino a euro 10.329.000",30,36.6]
[null,null,null,"CM-220809","OG12 VII fino a euro 15.494.000",30,36.6]
[null,null,null,"CM-220810","OG12 VIII oltre euro 15.494.000",30,36.6]
[null,null,null,"CM-2209","Lavori in terra (OS 01)",null,null,null,{"$f":"IF(COUNTIF(H309:H318,\"x\")>0,30,0)","v":0}]
[null,null,null,"CM-220901","OS01 I fino a euro 258.000 ",30,36.6]
[null,null,null,"CM-220902","OS01 II fino a euro 516.000",30,36.6]
[null,null,null,"CM-220903","OS01 III fino a euro 1.033.000",30,36.6]
[null,null,null,"CM-220904","OS01 III bis fino a euro 1.500.000",30,36.6]
[null,null,null,"CM-220905","OS01 IV fino a euro 2.582.000",30,36.6]
[null,null,null,"CM-220906","OS01 IV bis fino a euro 3.500.000",30,36.6]
[null,null,null,"CM-220907","OS01 V fino a euro 5.165.000",30,36.6]
[null,null,null,"CM-220908","OS01 VI fino a euro 10.329.000",30,36.6]
[null,null,null,"CM-220909","OS01 VII fino a euro 15.494.000",30,36.6]
[null,null,null,"CM-220910","OS01 VIII oltre euro 15.494.000",30,36.6]
[null,null,null,"CM-2210","Impianti idrico-sanitari, cucine, lavanderie (OS 03)",null,null,null,{"$f":"IF(COUNTIF(H320:H329,\"x\")>0,30,0)","v":0}]
[null,null,null,"CM-221001","OS03 I fino a euro 258.000 ",30,36.6]
[null,null,null,"CM-221002","OS03 II fino a euro 516.000",30,36.6]
[null,null,null,"CM-221003","OS03 III fino a euro 1.033.000",30,36.6]
[null,null,null,"CM-221004","OS03 III bis fino a euro 1.500.000",30,36.6]
[null,null,null,"CM-221005","OS03 IV fino a euro 2.582.000",30,36.6]
[null,null,null,"CM-221006","OS03 IV bis fino a euro 3.500.000",30,36.6]
[null,null,null,"CM-221007","OS03 V fino a euro 5.165.000",30,36.6]
[null,null,null,"CM-221008","OS03 VI fino a euro 10.329.000",30,36.6]
[null,null,null,"CM-221009","OS03 VII fino a euro 15.494.000",30,36.6]
[null,null,null,"CM-221010","OS03 VIII oltre euro 15.494.000",30,36.6]
[null,null,null,"CM-2211","Impianti elettromeccanici trasportatori (OS 04)",null,null,null,{"$f":"IF(COUNTIF(H331:H340,\"x\")>0,30,0)","v":0}]
[null,null,null,"CM-221101","OS04 I fino a euro 258.000 ",30,36.6]
[null,null,null,"CM-221102","OS04 II fino a euro 516.000",30,36.6]
[null,null,null,"CM-221103","OS04 III fino a euro 1.033.000",30,36.6]
[null,null,null,"CM-221104","OS04 III bis fino a euro 1.500.000",30,36.6]
[null,null,null,"CM-221105","OS04 IV fino a euro 2.582.000",30,36.6]
[null,null,null,"CM-221106","OS04 IV bis fino a euro 3.500.000",30,36.6]
[null,null,null,"CM-221107","OS04 V fino a euro 5.165.000",30,36.6]
[null,null,null,"CM-221108","OS04 VI fino a euro 10.329.000",30,36.6]
[null,null,null,"CM-221109","OS04 VII fino a euro 15.494.000",30,36.6]
[null,null,null,"CM-221110","OS04 VIII oltre euro 15.494.000",30,36.6]
[null,null,null,"CM-2212","Impianti pneumatici e antintrusione (OS 05)",null,null,null,{"$f":"IF(COUNTIF(H342:H351,\"x\")>0,30,0)","v":0}]
[null,null,null,"CM-221201","OS05 I fino a euro 258.000 ",30,36.6]
[null,null,null,"CM-221202","OS05 II fino a euro 516.000",30,36.6]
[null,null,null,"CM-221203","OS05 III fino a euro 1.033.000",30,36.6]
[null,null,null,"CM-221204","OS05 III bis fino a euro 1.500.000",30,36.6]
[null,null,null,"CM-221205","OS05 IV fino a euro 2.582.000",30,36.6]
[null,null,null,"CM-221206","OS05 IV bis fino a euro 3.500.000",30,36.6]
[null,null,null,"CM-221207","OS05 V fino a euro 5.165.000",30,36.6]
[null,null,null,"CM-221208","OS05 VI fino a euro 10.329.000",30,36.6]
[null,null,null,"CM-221209","OS05 VII fino a euro 15.494.000",30,36.6]
[null,null,null,"CM-221210","OS05 VIII oltre euro 15.494.000",30,36.6]
[null,null,null,"CM-2213","Finiture di opere generali in materiali lignei, plastici, metallici e vetrosi (OS 06)",null,null,null,{"$f":"IF(COUNTIF(H353:H362,\"x\")>0,30,0)","v":0}]
[null,null,null,"CM-221301","OS06 I fino a euro 258.000 ",30,36.6]
[null,null,null,"CM-221302","OS06 II fino a euro 516.000",30,36.6]
[null,null,null,"CM-221303","OS06 III fino a euro 1.033.000",30,36.6]
[null,null,null,"CM-221304","OS06 III bis fino a euro 1.500.000",30,36.6]
[null,null,null,"CM-221305","OS06 IV fino a euro 2.582.000",30,36.6]
[null,null,null,"CM-221306","OS06 IV bis fino a euro 3.500.000",30,36.6]
[null,null,null,"CM-221307","OS06 V fino a euro 5.165.000",30,36.6]
[null,null,null,"CM-221308","OS06 VI fino a euro 10.329.000",30,36.6]
[null,null,null,"CM-221309","OS06 VII fino a euro 15.494.000",30,36.6]
[null,null,null,"CM-221310","OS06 VIII oltre euro 15.494.000",30,36.6]
[null,null,null,"CM-2214","Finiture di opere generali di natura edile (OS 07)",null,null,null,{"$f":"IF(COUNTIF(H364:H373,\"x\")>0,30,0)","v":0}]
[null,null,null,"CM-221401","OS07 I fino a euro 258.000 ",30,36.6]
[null,null,null,"CM-221402","OS07 II fino a euro 516.000",30,36.6]
[null,null,null,"CM-221403","OS07 III fino a euro 1.033.000",30,36.6]
[null,null,null,"CM-221404","OS07 III bis fino a euro 1.500.000",30,36.6]
[null,null,null,"CM-221405","OS07 IV fino a euro 2.582.000",30,36.6]
[null,null,null,"CM-221406","OS07 IV bis fino a euro 3.500.000",30,36.6]
[null,null,null,"CM-221407","OS07 V fino a euro 5.165.000",30,36.6]
[null,null,null,"CM-221408","OS07 VI fino a euro 10.329.000",30,36.6]
[null,null,null,"CM-221409","OS07 VII fino a euro 15.494.000",30,36.6]
[null,null,null,"CM-221410","OS07 VIII oltre euro 15.494.000",30,36.6]
[null,null,null,"CM-2215","Finiture di opere generali di natura tecnica (OS 08)",null,null,null,{"$f":"IF(COUNTIF(H375:H384,\"x\")>0,30,0)","v":0}]
[null,null,null,"CM-221501","OS08 I fino a euro 258.000 ",30,36.6]
[null,null,null,"CM-221502","OS08 II fino a euro 516.000",30,36.6]
[null,null,null,"CM-221503","OS08 III fino a euro 1.033.000",30,36.6]
[null,null,null,"CM-221504","OS08 III bis fino a euro 1.500.000",30,36.6]
[null,null,null,"CM-221505","OS08 IV fino a euro 2.582.000",30,36.6]
[null,null,null,"CM-221506","OS08 IV bis fino a euro 3.500.000",30,36.6]
[null,null,null,"CM-221507","OS08 V fino a euro 5.165.000",30,36.6]
[null,null,null,"CM-221508","OS08 VI fino a euro 10.329.000",30,36.6]
[null,null,null,"CM-221509","OS08 VII fino a euro 15.494.000",30,36.6]
[null,null,null,"CM-221510","OS08 VIII oltre euro 15.494.000",30,36.6]
[null,null,null,"CM-2216","Impianti per la segnaletica luminosa e la sicurezza del traffico (OS 09)",null,null,null,{"$f":"IF(COUNTIF(H386:H395,\"x\")>0,30,0)","v":0}]
[null,null,null,"CM-221601","OS09 I fino a euro 258.000 ",30,36.6]
[null,null,null,"CM-221602","OS09 II fino a euro 516.000",30,36.6]
[null,null,null,"CM-221603","OS09 III fino a euro 1.033.000",30,36.6]
[null,null,null,"CM-221604","OS09 III bis fino a euro 1.500.000",30,36.6]
[null,null,null,"CM-221605","OS09 IV fino a euro 2.582.000",30,36.6]
[null,null,null,"CM-221606","OS09 IV bis fino a euro 3.500.000",30,36.6]
[null,null,null,"CM-221607","OS09 V fino a euro 5.165.000",30,36.6]
[null,null,null,"CM-221608","OS09 VI fino a euro 10.329.000",30,36.6]
[null,null,null,"CM-221609","OS09 VII fino a euro 15.494.000",30,36.6]
[null,null,null,"CM-221610","OS09 VIII oltre euro 15.494.000",30,36.6]
[null,null,null,"CM-2217","Segnaletica stradale non luminosa (OS 10)",null,null,null,{"$f":"IF(COUNTIF(H397:H406,\"x\")>0,30,0)","v":0}]
[null,null,null,"CM-221701","OS10 I fino a euro 258.000 ",30,36.6]
[null,null,null,"CM-221702","OS10 II fino a euro 516.000",30,36.6]
[null,null,null,"CM-221703","OS10 III fino a euro 1.033.000",30,36.6]
[null,null,null,"CM-221704","OS10 III bis fino a euro 1.500.000",30,36.6]
[null,null,null,"CM-221705","OS10 IV fino a euro 2.582.000",30,36.6]
[null,null,null,"CM-221706","OS10 IV bis fino a euro 3.500.000",30,36.6]
[null,null,null,"CM-221707","OS10 V fino a euro 5.165.000",30,36.6]
[null,null,null,"CM-221708","OS10 VI fino a euro 10.329.000",30,36.6]
[null,null,null,"CM-221709","OS10 VII fino a euro 15.494.000",30,36.6]
[null,null,null,"CM-221710","OS10 VIII oltre euro 15.494.000",30,36.6]
[null,null,null,"CM-221801","Barriere stradali di sicurezza (OS 12-A)",null,null,null,{"$f":"IF(COUNTIF(H408:H417,\"x\")>0,30,0)","v":0}]
[null,null,null,"CM-22180101","OS12-A I fino a euro 258.000 ",30,36.6]
[null,null,null,"CM-22180102","OS12-A II fino a euro 516.000",30,36.6]
[null,null,null,"CM-22180103","OS12-A III fino a euro 1.033.000",30,36.6]
[null,null,null,"CM-22180104","OS12-A III bis fino a euro 1.500.000",30,36.6]
[null,null,null,"CM-22180105","OS12-A IV fino a euro 2.582.000",30,36.6]
[null,null,null,"CM-22180106","OS12-A IV bis fino a euro 3.500.000",30,36.6]
[null,null,null,"CM-22180107","OS12-A V fino a euro 5.165.000",30,36.6]
[null,null,null,"CM-22180108","OS12-A VI fino a euro 10.329.000",30,36.6]
[null,null,null,"CM-22180109","OS12-A VII fino a euro 15.494.000",30,36.6]
[null,null,null,"CM-22180110","OS12-A VIII oltre euro 15.494.000",30,36.6]
[null,null,null,"CM-221802","Barriere paramassi, fermaneve e simili (OS12-B)",null,null,null,{"$f":"IF(COUNTIF(H419:H428,\"x\")>0,30,0)","v":0}]
[null,null,null,"CM-22180201","OS12-B I fino a euro 258.000 ",30,36.6]
[null,null,null,"CM-22180202","OS12-B II fino a euro 516.000",30,36.6]
[null,null,null,"CM-22180203","OS12-B III fino a euro 1.033.000",30,36.6]
[null,null,null,"CM-22180204","OS12-B III bis fino a euro 1.500.000",30,36.6]
[null,null,null,"CM-22180205","OS12-B IV fino a euro 2.582.000",30,36.6]
[null,null,null,"CM-22180206","OS12-B IV bis fino a euro 3.500.000",30,36.6]
[null,null,null,"CM-22180207","OS12-B V fino a euro 5.165.000",30,36.6]
[null,null,null,"CM-22180208","OS12-B VI fino a euro 10.329.000",30,36.6]
[null,null,null,"CM-22180209","OS12-B VII fino a euro 15.494.000",30,36.6]
[null,null,null,"CM-22180210","OS12-B VIII oltre euro 15.494.000",30,36.6]
[null,null,null,"CM-2219","Strutture prefabbricate in cemento armato (OS 13)",null,null,null,{"$f":"IF(COUNTIF(H430:H439,\"x\")>0,30,0)","v":0}]
[null,null,null,"CM-221901","OS13 I fino a euro 258.000 ",30,36.6]
[null,null,null,"CM-221902","OS13 II fino a euro 516.000",30,36.6]
[null,null,null,"CM-221903","OS13 III fino a euro 1.033.000",30,36.6]
[null,null,null,"CM-221904","OS13 III bis fino a euro 1.500.000",30,36.6]
[null,null,null,"CM-221905","OS13 IV fino a euro 2.582.000",30,36.6]
[null,null,null,"CM-221906","OS13 IV bis fino a euro 3.500.000",30,36.6]
[null,null,null,"CM-221907","OS13 V fino a euro 5.165.000",30,36.6]
[null,null,null,"CM-221908","OS13 VI fino a euro 10.329.000",30,36.6]
[null,null,null,"CM-221909","OS13 VII fino a euro 15.494.000",30,36.6]
[null,null,null,"CM-221910","OS13 VIII oltre euro 15.494.000",30,36.6]
[null,null,null,"CM-2220","Impianti di smaltimento e recupero rifiuti (OS 14)",null,null,null,{"$f":"IF(COUNTIF(H441:H450,\"x\")>0,30,0)","v":0}]
[null,null,null,"CM-222001","OS14 I fino a euro 258.000 ",30,36.6]
[null,null,null,"CM-222002","OS14 II fino a euro 516.000",30,36.6]
[null,null,null,"CM-222003","OS14 III fino a euro 1.033.000",30,36.6]
[null,null,null,"CM-222004","OS14 III bis fino a euro 1.500.000",30,36.6]
[null,null,null,"CM-222005","OS14 IV fino a euro 2.582.000",30,36.6]
[null,null,null,"CM-222006","OS14 IV bis fino a euro 3.500.000",30,36.6]
[null,null,null,"CM-222007","OS14 V fino a euro 5.165.000",30,36.6]
[null,null,null,"CM-222008","OS14 VI fino a euro 10.329.000",30,36.6]
[null,null,null,"CM-222009","OS14 VII fino a euro 15.494.000",30,36.6]
[null,null,null,"CM-222010","OS14 VIII oltre euro 15.494.000",30,36.6]
[null,null,null,"CM-2221","Impianti per centrali produzione energia elettrica (OS 16)",null,null,null,{"$f":"IF(COUNTIF(H452:H461,\"x\")>0,30,0)","v":0}]
[null,null,null,"CM-222101","OS16 I fino a euro 258.000 ",30,36.6]
[null,null,null,"CM-222102","OS16 II fino a euro 516.000",30,36.6]
[null,null,null,"CM-222103","OS16 III fino a euro 1.033.000",30,36.6]
[null,null,null,"CM-222104","OS16 III bis fino a euro 1.500.000",30,36.6]
[null,null,null,"CM-222105","OS16 IV fino a euro 2.582.000",30,36.6]
[null,null,null,"CM-222106","OS16 IV bis fino a euro 3.500.000",30,36.6]
[null,null,null,"CM-222107","OS16 V fino a euro 5.165.000",30,36.6]
[null,null,null,"CM-222108","OS16 VI fino a euro 10.329.000",30,36.6]
[null,null,null,"CM-222109","OS16 VII fino a euro 15.494.000",30,36.6]
[null,null,null,"CM-222110","OS16 VIII oltre euro 15.494.000",30,36.6]
[null,null,null,"CM-2222","Linee telefoniche ed impianti di telefonia (OS 17)",null,null,null,{"$f":"IF(COUNTIF(H463:H472,\"x\")>0,30,0)","v":0}]
[null,null,null,"CM-222201","OS17 I fino a euro 258.000 ",30,36.6]
[null,null,null,"CM-222202","OS17 II fino a euro 516.000",30,36.6]
[null,null,null,"CM-222203","OS17 III fino a euro 1.033.000",30,36.6]
[null,null,null,"CM-222204","OS17 III bis fino a euro 1.500.000",30,36.6]
[null,null,null,"CM-222205","OS17 IV fino a euro 2.582.000",30,36.6]
[null,null,null,"CM-222206","OS17 IV bis fino a euro 3.500.000",30,36.6]
[null,null,null,"CM-222207","OS17 V fino a euro 5.165.000",30,36.6]
[null,null,null,"CM-222208","OS17 VI fino a euro 10.329.000",30,36.6]
[null,null,null,"CM-222209","OS17 VII fino a euro 15.494.000",30,36.6]
[null,null,null,"CM-222210","OS17 VIII oltre euro 15.494.000",30,36.6]
[null,null,null,"CM-222301","Componenti strutturali in acciaio (OS 18-A)",null,null,null,{"$f":"IF(COUNTIF(H474:H483,\"x\")>0,30,0)","v":0}]
[null,null,null,"CM-22230101","OS18-A I fino a euro 258.000 ",30,36.6]
[null,null,null,"CM-22230102","OS18-A II fino a euro 516.000",30,36.6]
[null,null,null,"CM-22230103","OS18-A III fino a euro 1.033.000",30,36.6]
[null,null,null,"CM-22230104","OS18-A III bis fino a euro 1.500.000",30,36.6]
[null,null,null,"CM-22230105","OS18-A IV fino a euro 2.582.000",30,36.6]
[null,null,null,"CM-22230106","OS18-A IV bis fino a euro 3.500.000",30,36.6]
[null,null,null,"CM-22230107","OS18-A V fino a euro 5.165.000",30,36.6]
[null,null,null,"CM-22230108","OS18-A VI fino a euro 10.329.000",30,36.6]
[null,null,null,"CM-22230109","OS18-A VII fino a euro 15.494.000",30,36.6]
[null,null,null,"CM-22230110","OS18-A VIII oltre euro 15.494.000",30,36.6]
[null,null,null,"CM-222302","Componenti per facciate continue (OS 18-B)",null,null,null,{"$f":"IF(COUNTIF(H485:H494,\"x\")>0,30,0)","v":0}]
[null,null,null,"CM-22230201","OS18-B I fino a euro 258.000 ",30,36.6]
[null,null,null,"CM-22230202","OS18-B II fino a euro 516.000",30,36.6]
[null,null,null,"CM-22230203","OS18-B III fino a euro 1.033.000",30,36.6]
[null,null,null,"CM-22230204","OS18-B III bis fino a euro 1.500.000",30,36.6]
[null,null,null,"CM-22230205","OS18-B IV fino a euro 2.582.000",30,36.6]
[null,null,null,"CM-22230206","OS18-B IV bis fino a euro 3.500.000",30,36.6]
[null,null,null,"CM-22230207","OS18-B V fino a euro 5.165.000",30,36.6]
[null,null,null,"CM-22230208","OS18-B VI fino a euro 10.329.000",30,36.6]
[null,null,null,"CM-22230209","OS18-B VII fino a euro 15.494.000",30,36.6]
[null,null,null,"CM-22230210","OS18-B VIII oltre euro 15.494.000",30,36.6]
[null,null,null,"CM-2224","Impianti di reti di telecomunicazione e di trasmissione e trattamento (OS 19)",null,null,null,{"$f":"IF(COUNTIF(H496:H505,\"x\")>0,30,0)","v":0}]
[null,null,null,"CM-222401","OS19 I fino a euro 258.000 ",30,36.6]
[null,null,null,"CM-222402","OS19 II fino a euro 516.000",30,36.6]
[null,null,null,"CM-222403","OS19 III fino a euro 1.033.000",30,36.6]
[null,null,null,"CM-222404","OS19 III bis fino a euro 1.500.000",30,36.6]
[null,null,null,"CM-222405","OS19 IV fino a euro 2.582.000",30,36.6]
[null,null,null,"CM-222406","OS19 IV bis fino a euro 3.500.000",30,36.6]
[null,null,null,"CM-222407","OS19 V fino a euro 5.165.000",30,36.6]
[null,null,null,"CM-222408","OS19 VI fino a euro 10.329.000",30,36.6]
[null,null,null,"CM-222409","OS19 VII fino a euro 15.494.000",30,36.6]
[null,null,null,"CM-222410","OS19 VIII oltre euro 15.494.000",30,36.6]
[null,null,null,"CM-2225","Opere strutturali speciali (OS 21)",null,null,null,{"$f":"IF(COUNTIF(H507:H516,\"x\")>0,30,0)","v":0}]
[null,null,null,"CM-222501","OS21 I fino a euro 258.000 ",30,36.6]
[null,null,null,"CM-222502","OS21 II fino a euro 516.000",30,36.6]
[null,null,null,"CM-222503","OS21 III fino a euro 1.033.000",30,36.6]
[null,null,null,"CM-222504","OS21 III bis fino a euro 1.500.000",30,36.6]
[null,null,null,"CM-222505","OS21 IV fino a euro 2.582.000",30,36.6]
[null,null,null,"CM-222506","OS21 IV bis fino a euro 3.500.000",30,36.6]
[null,null,null,"CM-222507","OS21 V fino a euro 5.165.000",30,36.6]
[null,null,null,"CM-222508","OS21 VI fino a euro 10.329.000",30,36.6]
[null,null,null,"CM-222509","OS21 VII fino a euro 15.494.000",30,36.6]
[null,null,null,"CM-222510","OS21 VIII oltre euro 15.494.000",30,36.6]
[null,null,null,"CM-2226","Impianti di potabilizzazione e depurazione (OS 22)",null,null,null,{"$f":"IF(COUNTIF(H518:H527,\"x\")>0,30,0)","v":0}]
[null,null,null,"CM-222601","OS22 I fino a euro 258.000 ",30,36.6]
[null,null,null,"CM-222602","OS22 II fino a euro 516.000",30,36.6]
[null,null,null,"CM-222603","OS22 III fino a euro 1.033.000",30,36.6]
[null,null,null,"CM-222604","OS22 III bis fino a euro 1.500.000",30,36.6]
[null,null,null,"CM-222605","OS22 IV fino a euro 2.582.000",30,36.6]
[null,null,null,"CM-222606","OS22 IV bis fino a euro 3.500.000",30,36.6]
[null,null,null,"CM-222607","OS22 V fino a euro 5.165.000",30,36.6]
[null,null,null,"CM-222608","OS22 VI fino a euro 10.329.000",30,36.6]
[null,null,null,"CM-222609","OS22 VII fino a euro 15.494.000",30,36.6]
[null,null,null,"CM-222610","OS22 VIII oltre euro 15.494.000",30,36.6]
[null,null,null,"CM-2227","Demolizioni di opere (OS 23)",null,null,null,{"$f":"IF(COUNTIF(H529:H538,\"x\")>0,30,0)","v":0}]
[null,null,null,"CM-222701","OS23 I fino a euro 258.000 ",30,36.6]
[null,null,null,"CM-222702","OS23 II fino a euro 516.000",30,36.6]
[null,null,null,"CM-222703","OS23 III fino a euro 1.033.000",30,36.6]
[null,null,null,"CM-222704","OS23 III bis fino a euro 1.500.000",30,36.6]
[null,null,null,"CM-222705","OS23 IV fino a euro 2.582.000",30,36.6]
[null,null,null,"CM-222706","OS23 IV bis fino a euro 3.500.000",30,36.6]
[null,null,null,"CM-222707","OS23 V fino a euro 5.165.000",30,36.6]
[null,null,null,"CM-222708","OS23 VI fino a euro 10.329.000",30,36.6]
[null,null,null,"CM-222709","OS23 VII fino a euro 15.494.000",30,36.6]
[null,null,null,"CM-222710","OS23 VIII oltre euro 15.494.000",30,36.6]
[null,null,null,"CM-2228","Verde e arredo urbano (OS 24)",null,null,null,{"$f":"IF(COUNTIF(H540:H549,\"x\")>0,30,0)","v":0}]
[null,null,null,"CM-222801","OS24 I fino a euro 258.000 ",30,36.6]
[null,null,null,"CM-222802","OS24 II fino a euro 516.000",30,36.6]
[null,null,null,"CM-222803","OS24 III fino a euro 1.033.000",30,36.6]
[null,null,null,"CM-222804","OS24 III bis fino a euro 1.500.000",30,36.6]
[null,null,null,"CM-222805","OS24 IV fino a euro 2.582.000",30,36.6]
[null,null,null,"CM-222806","OS24 IV bis fino a euro 3.500.000",30,36.6]
[null,null,null,"CM-222807","OS24 V fino a euro 5.165.000",30,36.6]
[null,null,null,"CM-222808","OS24 VI fino a euro 10.329.000",30,36.6]
[null,null,null,"CM-222809","OS24 VII fino a euro 15.494.000",30,36.6]
[null,null,null,"CM-222810","OS24 VIII oltre euro 15.494.000",30,36.6]
[null,null,null,"CM-2229","Pavimentazioni e sovrastrutture speciali (OS 26)",null,null,null,{"$f":"IF(COUNTIF(H551:H560,\"x\")>0,30,0)","v":0}]
[null,null,null,"CM-222901","OS26 I fino a euro 258.000 ",30,36.6]
[null,null,null,"CM-222902","OS26 II fino a euro 516.000",30,36.6]
[null,null,null,"CM-222903","OS26 III fino a euro 1.033.000",30,36.6]
[null,null,null,"CM-222904","OS26 III bis fino a euro 1.500.000",30,36.6]
[null,null,null,"CM-222905","OS26 IV fino a euro 2.582.000",30,36.6]
[null,null,null,"CM-222906","OS26 IV bis fino a euro 3.500.000",30,36.6]
[null,null,null,"CM-222907","OS26 V fino a euro 5.165.000",30,36.6]
[null,null,null,"CM-222908","OS26 VI fino a euro 10.329.000",30,36.6]
[null,null,null,"CM-222909","OS26 VII fino a euro 15.494.000",30,36.6]
[null,null,null,"CM-222910","OS26 VIII oltre euro 15.494.000",30,36.6]
[null,null,null,"CM-2230","Impianti termici e di condizionamento (OS 28)",null,null,null,{"$f":"IF(COUNTIF(H562:H571,\"x\")>0,30,0)","v":0}]
[null,null,null,"CM-223001","OS28 I fino a euro 258.000 ",30,36.6]
[null,null,null,"CM-223002","OS28 II fino a euro 516.000",30,36.6]
[null,null,null,"CM-223003","OS28 III fino a euro 1.033.000",30,36.6]
[null,null,null,"CM-223004","OS28 III bis fino a euro 1.500.000",30,36.6]
[null,null,null,"CM-223005","OS28 IV fino a euro 2.582.000",30,36.6]
[null,null,null,"CM-223006","OS28 IV bis fino a euro 3.500.000",30,36.6]
[null,null,null,"CM-223007","OS28 V fino a euro 5.165.000",30,36.6]
[null,null,null,"CM-223008","OS28 VI fino a euro 10.329.000",30,36.6]
[null,null,null,"CM-223009","OS28 VII fino a euro 15.494.000",30,36.6]
[null,null,null,"CM-223010","OS28 VIII oltre euro 15.494.000",30,36.6]
[null,null,null,"CM-2231","Impianti interni elettrici, telefonici, radiotelefonici e televisivi (OS 30)",null,null,null,{"$f":"IF(COUNTIF(H573:H582,\"x\")>0,30,0)","v":0}]
[null,null,null,"CM-223101","OS30 I fino a euro 258.000 ",30,36.6]
[null,null,null,"CM-223102","OS30 II fino a euro 516.000",30,36.6]
[null,null,null,"CM-223103","OS30 III fino a euro 1.033.000",30,36.6]
[null,null,null,"CM-223104","OS30 III bis fino a euro 1.500.000",30,36.6]
[null,null,null,"CM-223105","OS30 IV fino a euro 2.582.000",30,36.6]
[null,null,null,"CM-223106","OS30 IV bis fino a euro 3.500.000",30,36.6]
[null,null,null,"CM-223107","OS30 V fino a euro 5.165.000",30,36.6]
[null,null,null,"CM-223108","OS30 VI fino a euro 10.329.000",30,36.6]
[null,null,null,"CM-223109","OS30 VII fino a euro 15.494.000",30,36.6]
[null,null,null,"CM-223110","OS30 VIII oltre euro 15.494.000",30,36.6]
[null,null,null,"CM-2232","Coperture speciali (OS 33)",null,null,null,{"$f":"IF(COUNTIF(H584:H593,\"x\")>0,30,0)","v":0}]
[null,null,null,"CM-223201","OS33 I fino a euro 258.000 ",30,36.6]
[null,null,null,"CM-223202","OS33 II fino a euro 516.000",30,36.6]
[null,null,null,"CM-223203","OS33 III fino a euro 1.033.000",30,36.6]
[null,null,null,"CM-223204","OS33 III bis fino a euro 1.500.000",30,36.6]
[null,null,null,"CM-223205","OS33 IV fino a euro 2.582.000",30,36.6]
[null,null,null,"CM-223206","OS33 IV bis fino a euro 3.500.000",30,36.6]
[null,null,null,"CM-223207","OS33 V fino a euro 5.165.000",30,36.6]
[null,null,null,"CM-223208","OS33 VI fino a euro 10.329.000",30,36.6]
[null,null,null,"CM-223209","OS33 VII fino a euro 15.494.000",30,36.6]
[null,null,null,"CM-223210","OS33 VIII oltre euro 15.494.000",30,36.6]
[null,null,null,"CM-2233","Sistemi antirumore per infrastrutture di mobilità (OS 34)",null,null,null,{"$f":"IF(COUNTIF(H595:H604,\"x\")>0,30,0)","v":0}]
[null,null,null,"CM-223301","OS34 I fino a euro 258.000 ",30,36.6]
[null,null,null,"CM-223302","OS34 II fino a euro 516.000",30,36.6]
[null,null,null,"CM-223303","OS34 III fino a euro 1.033.000",30,36.6]
[null,null,null,"CM-223304","OS34 III bis fino a euro 1.500.000",30,36.6]
[null,null,null,"CM-223305","OS34 IV fino a euro 2.582.000",30,36.6]
[null,null,null,"CM-223306","OS34 IV bis fino a euro 3.500.000",30,36.6]
[null,null,null,"CM-223307","OS34 V fino a euro 5.165.000",30,36.6]
[null,null,null,"CM-223308","OS34 VI fino a euro 10.329.000",30,36.6]
[null,null,null,"CM-223309","OS34 VII fino a euro 15.494.000",30,36.6]
[null,null,null,"CM-223310","OS34 VIII oltre euro 15.494.000",30,36.6]
[null,"CM-23","SERVIZI AEROPORTUALI","CM-2301","Vigilanza",30,36.6,null,{"$f":"IF(COUNTIF(H605:H618,\"x\")>0,30,0)","v":0}]
[null,null,null,"CM-2302","Sicurezza aeroportuale",30,36.6]
[null,null,null,"CM-2303","Facchinaggio",30,36.6]
[null,null,null,"CM-2304","Handling"]
[null,null,null,"CM-230401","Handling - cat. 2 APT 02B",30,36.6]
[null,null,null,"CM-230402","Handling - cat. 3 APT 02B",30,36.6]
[null,null,null,"CM-230403","Handling - cat. 4 APT 02B",30,36.6]
[null,null,null,"CM-230404","Handling - cat. 5 APT 02B",30,36.6]
[null,null,null,"CM-230405","Handling - cat. 6 APT 02B",30,36.6]
[null,null,null,"CM-2305","Sgrassaggio e sgommaggio piste e piazzali",30,36.6]
[null,null,null,"CM-2306","Sgombero Neve",30,36.6]
[null,null,null,"CM-2307","Prevenzione dei rischi di impatto con volatili ed altra fauna",30,36.6]
[null,null,null,"CM-2308","Calibrazione e certificazione apparati PAPI",30,36.6]
[null,null,null,"CM-2309","Misurazione fotometrica AVL ",30,36.6]
[null,"CM-24","SERVIZI VARI","CM-2401","Formazione e addestramento",30,36.6,null,{"$f":"IF(COUNTIF(H619:H636,\"x\")>0,30,0)","v":0}]
[null,null,null,"CM-2402","Somministrazione personale",30,36.6]
[null,null,null,"CM-2403","Prevenzione e sicurezza sul lavoro ",30,36.6]
[null,null,null,"CM-2404","Agenzie pratiche amministrative / Automobilistiche / Autoscuole",30,36.6]
[null,null,null,"CM-2405","Rassegna stampa",30,36.6]
[null,null,null,"CM-2406","Traduzioni e interpreti",30,36.6]
[null,null,null,"CM-2407","Inserzioni",30,36.6]
[null,null,null,"CM-2408","Comunicazione e grafica",30,36.6]
[null,null,null,"CM-2409","Accesso a banche dati legali in abbonamento ",30,36.6]
[null,null,null,"CM-2410","Ristorazione / Distributori automatici/ Servizio catering",30,36.6]
[null,null,null,"CM-2411","Ricerche di Mercato / Analisi customer satisfaction",30,36.6]
[null,null,null,"CM-2412","Servizi di certificazione aziendale"]
[null,null,null,"CM-241201","Area Qualità",30,36.6]
[null,null,null,"CM-241202","Area Ambiente",30,36.6]
[null,null,null,"CM-241203","Area Sicurezza",30,36.6]
[null,null,null,"CM-241204","Altro",30,36.6]
[null,null,null,"CM-2413","E-procurement",30,36.6]
[null,null,null,"CM-2414","Audit ed efficientamento energetico",30,36.6]
[null,"CM-25","TRASPORTI","CM-2501","Spedizioni",30,36.6,null,{"$f":"IF(COUNTIF(H637:H641,\"x\")>0,30,0)","v":0}]
[null,null,null,"CM-2502","Trasporti"]
[null,null,null,"CM-250201","Trasporti vari",30,36.6]
[null,null,null,"CM-250202","Trasporto persone con autobus tipo urbano",30,36.6]
[null,null,null,"CM-250203","Trasporto persone con pullman da turismo",30,36.6]
[null,"CM-26","UTILITIES","CM-2602","Elettricità",30,36.6,null,{"$f":"IF(COUNTIF(H642:H643,\"x\")>0,30,0)","v":0}]
[null,null,null,"CM-2603","Gas Naturale",30,36.6]
[null,"CM-27","ASSICURAZIONI E BROKERAGGIO","CM-2701","Assicurazioni  ",30,36.6,null,{"$f":"IF(COUNTIF(H644:H646,\"x\")>0,30,0)","v":0}]
[null,null,null,"CM-2702","Broker",30,36.6]
[null,null,null,"CM-2703","Stime e perizie",30,30]
[null,null,"PRESTAZIONI PROFESSIONALI DI INGEGNERIA E ARCHITETTURA","CM-2801","Progettazione, Direzione Lavori, attività tecnico amministrative connesse ed Esame Progetto VV.F.",null,null,null,{"$f":"IF(COUNTIF(H647:H679,\"x\")>0,30,0)","v":0}]
[null,null,null,"CM-280101","Strutture e fabbricati"]
[null,null,null,"CM-28010101","Strutture e fabbricati Fascia I fino a euro 40.000",30,36.6]
[null,null,null,"CM-28010102","Strutture e fabbricati Fascia II fino a soglia comunitaria",30,36.6]
[null,null,null,"CM-280102","Opere di Viabilità"]
[null,null,null,"CM-28010201","Opere di Viabilità Fascia I fino a euro 40.000",30,36.6]
[null,null,null,"CM-28010202","Opere di Viabilità Fascia II fino a soglia comunitaria",30,36.6]
[null,null,null,"CM-280103","Impianti Elettrici ed illuminazione"]
[null,null,null,"CM-28010301","Impianti Elettrici ed illuminazione Fascia I fino a euro 40.000",30,36.6]
[null,null,null,"CM-28010302","Impianti Elettrici ed illuminazione Fascia II fino a soglia comunitaria",30,36.6]
[null,null,null,"CM-280104","Impianti Meccanici ed Idraulici"]
[null,null,null,"CM-28010401","Impianti Meccanici ed Idraulici Fascia I fino a euro 40.000",30,36.6]
[null,null,null,"CM-28010402","Impianti Meccanici ed Idraulici Fascia II fino a soglia comunitaria",30,36.6]
[null,null,null,"CM-280105","Infrastrutture ed impianti aeroportuali"]
[null,null,null,"CM-28010501","Infrastrutture ed impianti aeroportuali Fascia I fino a euro 40.000",30,36.6]
[null,null,null,"CM-28010502","Infrastrutture ed impianti aeroportuali Fascia II fino a soglia comunitaria",30,36.6]
[null,null,null,"CM-280106","Impianti di fognatura, drenaggio e trattamento acque"]
[null,null,null,"CM-28010601","Impianti di fognatura, drenaggio e trattamento acque Fascia I fino a euro 40.000",30,36.6]
[null,null,null,"CM-28010602","Impianti di fognatura, drenaggio e trattamento acque Fascia II fino a soglia comunitaria",30,36.6]
[null,null,null,"CM-2802","Collaudi statici, collaudi in corso d’opera e collaudi tecnico-amministrativi",30,36.6]
[null,null,null,"CM-2803","Coordinamento della sicurezza"]
[null,null,null,"CM-280301","Coordinamento della sicurezza Fascia I fino a euro 40.000",30,36.6]
[null,null,null,"CM-280302","Coordinamento della sicurezza Fascia II fino a soglia comunitaria",30,36.6]
[null,null,null,"CM-2804","Presentazione SCIA VV.F.",30,36.6]
[null,null,null,"CM-2805","Frazionamenti, pratiche catastali e rilievi topografici",30,36.6]
[null,null,null,"CM-2806","Indagini e accertamenti (geologia e materiali)"]
[null,null,null,"CM-280601","Indagini geotecniche e geologiche",30,36.6]
[null,null,null,"CM-280602","Indagini sulle strutture e sui materiali",30,36.6]
[null,null,null,"CM-280603","Bonifica da ordigni bellici",30,36.6]
[null,null,null,"CM-2807","Verifica progetti ai fini della validazione codice appalti",30,36.6]
[null,null,null,"CM-2808","Pianificazione urbanistica e studi di impatto ambientale"]
[null,null,null,"CM-280801","Pianificazione urbanistica e master plan aeroportuali",30,36.6]
[null,null,null,"CM-280802","Studi di impatto ambientale",30,36.6]
[null,"CM-29","CONSULENZE","CM-2901","Consulenze Amministrative e Fiscali",30,36.6,null,{"$f":"IF(COUNTIF(H680:H686,\"x\")>0,30,0)","v":0}]
[null,null,null,"CM-2902","Consulenze Direzionali",30,36.6]
[null,null,null,"CM-2903","Consulenze Aeroportuali",30,36.6]
[null,null,null,"CM-2904","Consulenze Ambientali",30,36.6]
[null,null,null,"CM-2905","Consulenze Qualità",30,36.6]
[null,null,null,"CM-2906","Consulenze Informatiche",30,36.6]
[null,null,null,"CM-2907","Consulenze Legali",30,36.6]